[Event "German Championship Women 2022"]
[Site "Magdeburg"]
[Date "2022.08.14"]
[Round "1.1"]
[White "Schulze, Lara"]
[Black "Just, Anita"]
[Result "1-0"]
[ECO "C02"]
[WhiteElo "2292"]
[BlackElo "1905"]
[Annotator "TA"]
[PlyCount "151"]
[EventDate "2022.08.14"]
[EventType "swiss"]
[EventCountry "GER"]
[SourceTitle "playchess.com"]
[Source "ChessBase"]
[SourceQuality "1"]
[TimeControl "40/5400+30:1800+30"]

{[%evp 11,151,0,0,-13,111,92,113,97,112,101,145,159,200,189,193,156,247,229,237,227,252,254,236,142,116,74,89,82,85,93,108,83,70,77,122,122,114,112,114,112,120,105,95,94,116,112,109,97,128,104,112,104,125,102,123,33,33,33,29,29,43,29,35,14,20,0,0,0,0,0,0,0,0,0,6,0,3,7,7,8,57,78,144,0,0,0,0,0,0,0,0,0,23,10,10,10,10,8,8,10,29952,29963,29963,29964,29965,29967,29973,29973,29977,29978,29978,29979,29979,29980,29978,29979,29981,29982,29982,29983,29983,29984,29984,29985,29985,29986,29986,29987,29988,29986,29987,29987,29987,29988,29991,29990,29992,29991,29996,29991,29993,604]} 1. e4 {[%emt 0:00:03]} e6 {[%emt 0:00:05]} 2. d4 {[%emt 0:00:06]} d5 {[%emt 0:00:03]} 3. e5 {[%emt 0:00:05]} c5 {[%emt 0:00:07]} 4. c3 {[%emt 0:00:06]} Nc6 {[%emt 0:00:15]} 5. Nf3 {[%emt 0:00:09]} Qb6 {[%emt 0:00:10]} 6. Bd3 {[%emt 0:00:08]} cxd4 {[%emt 0:01:02]} 7. O-O $1 {[%emt 0:00:09][%mdl 4] is recently more successful than 7.cxd4. C02: French: Advance Variation.} f6 {[%emt 0:04:55] [#]} (7... Bd7 $11 {keeps the balance.}) 8. cxd4 $1 $16 {[%emt 0:11:22]} fxe5 {[%emt 0:01:54]} 9. dxe5 {[%emt 0:06:23] [#] White is better.} Nh6 $146 {[%emt 0:07:07]} ({Predecessor:} 9... Bc5 10. Nc3 Nd4 11. Nxd4 Bxd4 12. Qh5+ Kf8 13. Nb5 Bc5 14. Nc3 a6 15. Bg6 Bd7 16. Qf3+ Ke7 17. Bg5+ Nf6 18. Bxf6+ Kf8 19. Bd8+ Kg8 20. Qf7# {1-0 (20) Havalda,S (1504)-Gyori,S (1270) Liptovsky Mikulas 2019}) 10. Nc3 {[%emt 0:11:29][%cal Bb1c3,Bc3b5,Bb5d4][%mdl 32]} g6 {[%emt 0:02:22]} 11. Be3 {[%emt 0:09:14]} Qd8 {[%emt 0:11:31]} (11... Qxb2 12. Nb5 Rb8 13. Nfd4 $18) 12. Bg5 {[%emt 0:04:45]} Qd7 {[%emt 0:05:52]} 13. Nb5 {[%emt 0:05:28]} Nf7 {[%emt 0:02:50]} (13... Bg7 $16) 14. Bf6 $18 {[%emt 0:01:12]} Rg8 {[%emt 0:00:15]} 15. Nbd4 {[%emt 0:07:41]} a6 {[%emt 0:10:32]} 16. Bc2 {[%emt 0:02:09]} Be7 {[%emt 0:06:58]} 17. Bxe7 {[%emt 0:04:28]} Qxe7 {[%emt 0:00:48]} 18. Re1 {[%emt 0:03:21]} Bd7 {[%emt 0:04:49]} 19. Rc1 {[%emt 0:00:30]} Rc8 {[%emt 0:01:35]} 20. Ba4 {[%emt 0:03:50]} Kf8 {[%emt 0:03:56]} 21. Qd2 {[%emt 0:04:36]} Kg7 {[%emt 0:02:36]} 22. Bxc6 {[%emt 0:01:06] 0x0.001682382452dp-1022s more active pieces.} Bxc6 {[%emt 0:01:06]} 23. Rc3 {[%emt 0:04:03]} Bd7 {[%emt 0:06:07]} 24. Rec1 {[%emt 0:00:09]} Rxc3 {[%emt 0:00:34]} 25. Rxc3 {[%emt 0:00:38]} Rc8 {[%emt 0:01:06] Against Rc7} 26. h4 {[%emt 0:01:43]} Rxc3 {[%emt 0:03:23]} 27. Qxc3 {[%emt 0:00:16]} Qd8 {[%emt 0:01:01] Inhibits Qc7.} 28. Qe3 {[%emt 0:05:41]} Qe7 {[%emt 0:04:38]} 29. g3 {[%emt 0:02:07]} Qb4 {[%emt 0:03:01]} 30. Qf4 {[%emt 0:02:02]} Qe7 {[%emt 0:01:39]} 31. Qc1 {[%emt 0:01:19]} Qd8 {[%emt 0:00:49] Inhibits Qc7.} 32. Ng5 {[%emt 0:02:32]} Nxg5 {[%emt 0:02:50]} 33. Qxg5 {[%emt 0:01:35]} (33. hxg5 $16 Qc8 34. Qe3 (34. Qf4 Kg8 $16)) 33... Qxg5 $14 {[%emt 0:04:46]} 34. hxg5 $16 {[%emt 0:00:02][%mdl 4096] Endgame KB-KN} h6 {[%emt 0:02:03]} 35. gxh6+ {[%emt 0:03:52]} Kxh6 {[%emt 0:00:05]} 36. Kg2 {[%emt 0:00:06]} Kh5 {[%emt 0:03:06]} 37. Kf3 {[%emt 0:00:10]} Kg5 {[%emt 0:00:41]} 38. Ke3 {[%emt 0:01:40]} Kg4 {[%emt 0:00:38]} 39. Ne2 {[%emt 0:01:37]} Bb5 {[%emt 0:00:33] Hoping for ...Bxe2.} 40. Nd4 {[%emt 0:01:22]} Bd7 {[%emt 0:00:09]} 41. b3 {[%emt 0:08:15]} b6 {[%emt 0:04:50]} 42. b4 {[%emt 0:04:16]} Bc8 {[%emt 0:08:04]} 43. Ne2 {[%emt 0:04:38]} Bd7 {[%emt 0:02:28]} 44. f3+ {[%emt 0:02:08]} Kf5 {[%emt 0:00:30]} 45. Kd4 {[%emt 0:00:14]} Bb5 {[%emt 0:02:25]} (45... Ba4 $1 $11) 46. Nc3 $1 $14 {[%emt 0:01:59]} g5 {[%emt 0:02:29] [#]} ({Black should play} 46... Kg5) 47. a4 {[%emt 0:03:48]} ({Only move:} 47. a3 $1 $16) 47... Bf1 $1 $11 {[%emt 0:03:42]} 48. Nd1 {[%emt 0:02:56] Threatens to win with Ne3+.} Be2 {[%emt 0:00:51][%csl LRd1,LRf3]} 49. Ne3+ {[%emt 0:00:09]} Kg6 {[%emt 0:00:10]} 50. f4 {[%emt 0:00:37]} gxf4 {[%emt 0:01:15]} 51. gxf4 {[%emt 0:00:02][%cal Of4f5]} Kf7 {[%emt 0:00:57]} 52. a5 {[%emt 0:03:52]} bxa5 {[%emt 0:00:48]} 53. bxa5 {[%emt 0:00:01]} Ke7 {[%emt 0:00:55]} 54. f5 {[%emt 0:01:13]} exf5 {[%emt 0:02:01]} 55. Nxd5+ {[%emt 0:01:09]} Ke8 $2 {[%emt 0:01:29][%mdl 8192] This costs Black the game.} (55... Kd7 $11) 56. e6 {[%emt 0:00:36] White mates.} Bf3 {[%emt 0:03:54]} 57. Nf4 {[%emt 0:00:34]} Ke7 {[%emt 0:01:34]} 58. Ke5 {[%emt 0:00:05]} Be4 {[%emt 0:00:15]} 59. Ng6+ {[%emt 0:00:35]} Ke8 {[%emt 0:00:19]} 60. Nh4 {[%emt 0:02:52]} Bc2 {[%emt 0:02:14]} 61. Nxf5 {[%emt 0:00:14]} Kd8 {[%emt 0:00:50]} 62. Nd4 {[%emt 0:01:01]} Ba4 {[%emt 0:00:14]} 63. Kd6 {[%emt 0:00:10]} Be8 {[%emt 0:00:31]} 64. e7+ {[%emt 0:00:42]} Kc8 {[%emt 0:00:04]} 65. Nf5 {[%emt 0:00:14]} Kb7 {[%emt 0:00:58]} 66. Ng7 {[%emt 0:00:14]} Bb5 {[%emt 0:00:34]} 67. e8=Q {[%emt 0:00:16]} Bxe8 {[%emt 0:00:13]} 68. Nxe8 {[%emt 0:00:04] KN-KP} Kb8 {[%emt 0:00:08]} 69. Kc6 {[%emt 0:00:15]} Ka7 {[%emt 0:00:05]} 70. Nf6 {[%emt 0:00:12]} Ka8 {[%emt 0:00:14]} 71. Kb6 {[%emt 0:00:15]} Kb8 {[%emt 0:00:04]} 72. Kxa6 {[%emt 0:00:21]} Ka8 {[%emt 0:00:04]} 73. Kb6 {[%emt 0:00:12]} Kb8 {[%emt 0:00:06]} 74. Nd5 {[%emt 0:00:07]} Ka8 {[%emt 0:00:15]} 75. Nc7+ {[%emt 0:00:07]} Kb8 {[%emt 0:00:05]} 76. a6 {[%emt 0:00:05] Weighted Error Value: White=0.11 (very precise) /Black=0.28 (precise)} 1-0

[Event "German Championship Women 2022"]
[Site "Magdeburg"]
[Date "2022.08.14"]
[Round "1.2"]
[White "Basovskiy, Jana"]
[Black "Voicu-Jagodzinsky, Carmen"]
[Result "0-1"]
[ECO "C00"]
[WhiteElo "1867"]
[BlackElo "2258"]
[Annotator "TA"]
[PlyCount "92"]
[EventDate "2022.08.14"]
[EventType "swiss"]
[EventCountry "GER"]
[SourceTitle "playchess.com"]
[Source "ChessBase"]
[SourceQuality "1"]
[TimeControl "40/5400+30:1800+30"]

{[%evp 16,92,0,0,0,0,0,0,10,0,0,-12,-21,-17,-15,-20,-20,-19,-14,-39,0,-29,-17,-21,-25,-31,-6,-9,-8,-11,-2,-54,-39,-45,-43,-41,-46,-92,-47,-43,-20,-44,-2,-75,-23,-27,-27,-25,-25,-25,-32,-25,-32,-25,-29,-27,-22,-52,-26,-47,-27,-60,-47,-44,-50,-75,-56,-68,-57,-119,-93,-177,-162,-820,-809,-915,-893,-1408,-1019]} 1. e4 {[%emt 0:00:02]} e6 {[%emt 0:00:04]} 2. d3 {[%emt 0:00:07]} d5 {[%emt 0:00:05]} 3. Nd2 {[%emt 0:00:04]} Nf6 {[%emt 0:00:13]} 4. Ngf3 {[%emt 0:00:17]} Nc6 {[%emt 0:00:13]} 5. c3 {[%emt 0:01:20]} Bd6 {[%emt 0:00:34]} 6. g3 {[%emt 0:01:34]} O-O {[%emt 0:00:32]} 7. Bg2 {[%emt 0:00:07]} dxe4 {[%emt 0:00:55]} 8. dxe4 {[%emt 0:00:07]} e5 {[%emt 0:00:05]} 9. O-O {[%emt 0:00:19]} a5 {[%emt 0:00:43] A07: Réti Opening: New York and Capablanca Systems.} 10. a4 {[%emt 0:01:47]} Qe7 {[%emt 0:01:53]} 11. Qc2 {[%emt 0:01:53] [#]} Rd8 $146 {[%emt 0:05:05] The position is equal.} ({Predecessor:} 11... Bc5 12. h3 Nh5 13. Kh2 Be6 14. Ne1 Rad8 15. Nd3 Bb6 16. b3 Qf6 17. Ba3 Rfe8 {½-½ (71) Pelikan,J-Danielsson,G Buenos Aires 1939}) 12. Nc4 {[%emt 0:05:16]} Bc5 {[%emt 0:08:20]} 13. Be3 {[%emt 0:09:22]} Be6 {[%emt 0:04:47]} 14. Bxc5 {[%emt 0:02:50]} Qxc5 {[%emt 0:00:03]} 15. Ne3 {[%emt 0:00:10]} Ng4 {[%emt 0:06:05]} 16. Nxg4 {[%emt 0:06:42]} (16. Nd5 {is more complex.} Nb4 17. Nxb4 axb4 18. Ng5) 16... Bxg4 {[%emt 0:00:04]} 17. Qe2 {[%emt 0:03:23]} Rd6 {[%emt 0:03:43]} 18. Rfd1 {[%emt 0:03:45]} (18. Qb5 $5 {[%cal Rb5c5]} Qb6 19. h3 $11) 18... Rad8 {[%emt 0:00:42]} 19. h3 {[%emt 0:05:37]} Be6 {[%emt 0:02:03]} 20. Bf1 {[%emt 0:12:11]} Bc4 {[%emt 0:08:37]} 21. Qe1 {[%emt 0:02:44]} Bb3 {[%emt 0:03:38]} 22. Rxd6 {[%emt 0:02:31]} Qxd6 {[%emt 0:00:25]} 23. Qe3 {[%emt 0:04:20]} ({White should try} 23. Qe2 $11) 23... h6 {[%emt 0:03:27]} 24. Be2 {[%emt 0:02:56]} b6 {[%emt 0:06:54]} 25. Kh2 {[%emt 0:04:13]} Kh7 {[%emt 0:11:45]} 26. Kg1 {[%emt 0:01:57]} (26. Ra3 $15 Be6 27. Ra1) 26... g6 {[%emt 0:01:14]} 27. Bb5 {[%emt 0:07:13]} Na7 {[%cal Bc6a7,Ba7c8,Bc8d6][%mdl 32]} 28. Be2 {[%emt 0:00:34]} f6 {[%emt 0:06:45]} 29. Kh2 {[%emt 0:02:02]} (29. c4 $1 $11 Bc2 30. Rc1 Bxa4 31. c5 bxc5 32. Qxc5 Qxc5 33. Rxc5) 29... Qd7 {[%emt 0:02:12]} (29... Nc8 $17) 30. c4 $11 {[%emt 0:03:44]} Bxa4 {[%emt 0:01:13]} 31. b3 {[%emt 0:00:12]} Bc6 {[%emt 0:00:04]} 32. b4 $1 {[%emt 0:00:38]} Nc8 {[%emt 0:03:57]} 33. bxa5 {[%emt 0:00:18]} bxa5 {[%emt 0:00:44]} 34. Rxa5 {[%emt 0:00:12]} Nd6 $36 {[%emt 0:00:36][%mdl 2048] Black is pushing.} 35. Nd2 {[%emt 0:03:04]} Nf7 {[%emt 0:11:28]} 36. Nf3 {[%emt 0:01:29]} Kg7 {[%emt 0:01:48]} 37. Ra3 {[%emt 0:01:02]} Nd6 {[%emt 0:02:40]} 38. Rd3 {[%emt 0:01:55]} Qe8 {[%emt 0:02:36]} ({Of course not} 38... Bxe4 {[#]} 39. Rxd6 $1 Qxd6 40. Qxe4 $11) 39. Nd2 {[%emt 0:00:23]} Ra8 {[%emt 0:01:34][%cal Bd8a8,Ba8a4,Ba4a2][%mdl 32]} 40. Rb3 {[%emt 0:08:10]} Ra4 {[%emt 0:01:00]} 41. Bd3 {[%emt 0:31:53]} Qa8 {[%emt 0:31:00]} 42. Qe1 {[%emt 0:00:00]} ({Better is} 42. Rb2 $15) 42... Qa7 {[%emt 0:00:00] Black is more active.} 43. f3 {[%emt 0:00:00]} (43. Qe2 $17) 43... Qd4 $19 {[%emt 0:00:00] [#] aiming for ...Ra2.} 44. Kg2 $2 {[%emt 0:00:00]} (44. Bb1) 44... Ra2 {[%emt 0:00:00] ...Ba4 is the strong threat. Black is clearly winning.} 45. Qe2 {[%emt 0:00:00]} Ba4 {[%emt 0:00:00]} ({And not} 45... Ra1 46. Bb1 $17) 46. Rb1 {[%emt 0:00:48]} Qc3 {[%emt 0:00:00] Weighted Error Value: White=0.45/Black=0.11 (very precise)} 0-1

[Event "German Championship Women 2022"]
[Site "Magdeburg"]
[Date "2022.08.14"]
[Round "1.3"]
[White "Muetsch, Annmarie"]
[Black "Moenster, Madita"]
[Result "1-0"]
[ECO "A45"]
[WhiteElo "2249"]
[BlackElo "1864"]
[Annotator "NA RC"]
[PlyCount "63"]
[EventDate "2022.08.14"]
[EventType "swiss"]
[EventCountry "GER"]
[SourceTitle "playchess.com"]
[Source "ChessBase"]
[SourceQuality "1"]
[TimeControl "40/5400+30:1800+30"]

1. d4 {[%emt 0:00:13]} Nf6 {[%emt 0:00:12]} 2. Bg5 {[%emt 0:00:14]} Ne4 {[%emt 0:02:26]} 3. h4 {[%emt 0:00:15]} d5 {[%emt 0:02:36]} 4. Nd2 {[%emt 0:00:50]} Bf5 {[%emt 0:03:41]} 5. Nxe4 {[%emt 0:01:04]} Bxe4 {[%emt 0:02:03]} 6. e3 {[%emt 0:05:06]} c6 {[%emt 0:04:33]} 7. f3 {[%emt 0:05:01]} Bf5 {[%emt 0:01:30]} 8. Bd3 {[%emt 0:02:01]} (8. g4 $5 {[%cal Rg4f5]} Bc8 9. c3 $14) 8... Bxd3 {[%emt 0:07:46]} 9. Qxd3 {[%emt 0:00:07]} Qb6 {[%emt 0:00:49]} (9... h6 $5 10. Bf4 Nd7 $11) 10. O-O-O {[%emt 0:04:10]} Nd7 $14 {[%emt 0:02:49]} 11. e4 {[%emt 0:08:55]} e6 {[%emt 0:02:59]} 12. Nh3 {[%emt 0:03:19]} a5 {[%emt 0:14:37]} 13. c4 {[%emt 0:13:25]} Qc7 {[%emt 0:16:28]} 14. Kb1 {[%emt 0:03:48]} Nb6 {[%emt 0:03:57]} 15. cxd5 {[%emt 0:11:10]} cxd5 {[%emt 0:00:43]} 16. Rc1 {[%emt 0:00:49]} Qd7 {[%emt 0:02:57]} 17. Bf4 {[%emt 0:01:01]} Bd6 {[%emt 0:08:45]} 18. Bxd6 {[%emt 0:01:41]} Qxd6 {[%emt 0:00:09]} 19. Qb5+ {[%emt 0:00:29]} Nd7 {[%emt 0:11:45]} 20. Qxb7 {[%emt 0:08:22]} O-O {[%emt 0:06:22]} 21. e5 {[%emt 0:10:32]} Rab8 {[%emt 0:01:52]} 22. exd6 {[%emt 0:03:06]} Rxb7 {[%emt 0:00:06]} 23. Rc7 {[%emt 0:00:08]} Rfb8 {[%emt 0:01:20]} 24. Rxb7 {[%emt 0:04:14]} Rxb7 {[%emt 0:00:05]} 25. Rc1 {[%emt 0:00:08]} g6 {[%emt 0:01:04]} 26. Rc6 {[%emt 0:02:42]} a4 {[%emt 0:00:32]} 27. Nf4 {[%emt 0:00:31]} Nb6 {[%emt 0:00:24]} 28. Nd3 {[%emt 0:02:59]} Nc4 {[%emt 0:00:24]} 29. Ne5 {[%emt 0:03:59]} Nxb2 {[%emt 0:01:16]} 30. Kc2 {[%emt 0:00:40]} Rb8 {[%emt 0:00:40]} 31. d7 {[%emt 0:00:20]} Kg7 {[%emt 0:00:33]} 32. Rc8 {[%emt 0:00:08]} 1-0

[Event "German Championship Women 2022"]
[Site "Magdeburg"]
[Date "2022.08.14"]
[Round "1.4"]
[White "Mader, Lena"]
[Black "Kunze, Kerstin"]
[Result "0-1"]
[ECO "A13"]
[WhiteElo "1826"]
[BlackElo "2020"]
[Annotator "NA RC"]
[PlyCount "139"]
[EventDate "2022.08.14"]
[EventType "swiss"]
[EventCountry "GER"]
[SourceTitle "playchess.com"]
[Source "ChessBase"]
[SourceQuality "1"]
[TimeControl "40/5400+30:1800+30"]

1. c4 e6 2. Nf3 d5 3. g3 c6 4. b3 Nf6 5. Bg2 Bd6 6. Bb2 Nbd7 7. O-O Qe7 8. d4 Ne4 $14 9. Nbd2 O-O 10. Nxe4 dxe4 11. Nd2 f5 12. e3 Nf6 13. a3 Bd7 14. Qc2 h5 15. h4 Ng4 16. Bh3 Nh6 17. Kh1 Bc7 18. Rg1 e5 19. Bg2 Ng4 20. Raf1 exd4 21. Bxd4 Qxa3 22. c5 Be6 23. Nc4 Qb4 24. Bh3 b6 25. Bxg4 hxg4 26. Nd2 Qb5 27. Qc3 Rf7 28. Rc1 Qe2 29. Kg2 Bd5 30. Rge1 Qa6 31. Ra1 Qb7 32. Kg1 b5 33. Be5 a5 34. Reb1 Qb8 35. Bf4 Bxf4 36. exf4 b4 37. Qc2 Qb5 38. Nf1 e3 39. Nxe3 Be4 40. Qc1 Bxb1 41. Rxb1 a4 42. bxa4 Rxa4 43. Qd1 Ra8 44. Qd6 b3 45. Qe5 Qe2 46. Qe6 b2 47. Qe5 Rfa7 48. Qxb2 Qd3 49. Qb3+ Qxb3 50. Rxb3 Ra1+ 51. Kg2 Rc1 52. Rb2 Rxc5 53. Kf1 Kf7 54. Ke2 Rd8 55. f3 gxf3+ 56. Kxf3 Rc3 57. Kf2 g6 58. h5 Rdd3 59. h6 Kg8 60. Nf1 Kh7 61. Rb7+ Kxh6 62. Re7 Rc2+ 63. Ke1 Ra3 64. Rd7 Ra1+ 65. Rd1 Rcc1 66. Ne3 Rxd1+ 67. Nxd1 Kh5 68. Ke2 Rxd1 69. Kxd1 Kg4 70. Ke1 0-1

[Event "German Championship Women 2022"]
[Site "Magdeburg"]
[Date "2022.08.14"]
[Round "1.5"]
[White "Halas, Julia"]
[Black "Perez Celis, Alba"]
[Result "0-1"]
[ECO "D11"]
[WhiteElo "2012"]
[BlackElo "1816"]
[Annotator "NA RC"]
[PlyCount "68"]
[EventDate "2022.08.14"]
[EventType "swiss"]
[EventCountry "GER"]
[SourceTitle "playchess.com"]
[Source "ChessBase"]
[SourceQuality "1"]
[TimeControl "40/5400+30:1800+30"]

1. d4 {[%emt 0:00:03]} d5 {[%emt 0:00:18]} 2. c4 {[%emt 0:00:08]} c6 {[%emt 0:00:19]} 3. Nf3 {[%emt 0:00:07]} Nf6 {[%emt 0:00:22]} 4. Qc2 {[%emt 0:00:35]} e6 {[%emt 0:08:22]} 5. Bg5 {[%emt 0:01:42]} h6 {[%emt 0:01:53]} 6. Bxf6 {[%emt 0:03:20]} Qxf6 {[%emt 0:00:52]} 7. e3 {[%emt 0:00:41]} Nd7 {[%emt 0:00:24]} 8. Nc3 {[%emt 0:00:58]} g6 {[%emt 0:02:30]} 9. b3 {[%emt 0:06:31]} Bg7 $11 {[%emt 0:21:58]} 10. Be2 {[%emt 0:04:08]} dxc4 {[%emt 0:18:23]} 11. bxc4 {[%emt 0:03:45]} e5 {[%emt 0:00:10]} 12. d5 {[%emt 0:18:25]} Nc5 {[%emt 0:14:30]} 13. e4 {[%emt 0:05:34]} O-O {[%emt 0:00:28]} 14. O-O {[%emt 0:00:29]} Qe7 {[%emt 0:04:12]} 15. dxc6 {[%emt 0:05:37]} bxc6 {[%emt 0:00:12]} 16. g3 {[%emt 0:03:48]} f5 {[%emt 0:00:53]} 17. Nh4 {[%emt 0:01:24]} Kh7 {[%emt 0:02:38]} 18. exf5 {[%emt 0:01:28]} gxf5 {[%emt 0:01:01]} 19. Rad1 {[%emt 0:04:24]} e4 {[%emt 0:00:46]} 20. Na4 {[%emt 0:10:43]} Ne6 {[%emt 0:04:54]} 21. Bh5 {[%emt 0:03:37]} Qg5 {[%emt 0:05:45]} 22. Bg6+ {[%emt 0:04:29]} Kg8 {[%emt 0:00:14]} 23. f4 {[%emt 0:11:46]} exf3 {[%emt 0:00:30]} 24. Nxf5 {[%emt 0:00:35]} Nf4 {[%emt 0:02:08]} 25. Nxg7 {[%emt 0:01:59]} Kxg7 {[%emt 0:04:31]} 26. Be4 {[%emt 0:01:59]} Ne2+ {[%emt 0:01:22]} 27. Kf2 {[%emt 0:02:48]} Qh5 {[%emt 0:01:04]} 28. Rh1 {[%emt 0:02:15]} Qh3 {[%emt 0:00:07]} 29. Bxf3 {[%emt 0:00:13]} Bg4 {[%emt 0:01:15]} 30. Qxe2 {[%emt 0:00:42]} Bxf3 {[%emt 0:01:15]} 31. Qe5+ {[%emt 0:00:40]} Kg8 {[%emt 0:00:14]} 32. Rd6 {[%emt 0:00:52]} Bh5+ {[%emt 0:00:40]} 33. Rf6 {[%emt 0:00:13]} Rxf6+ {[%emt 0:00:23]} 34. Qxf6 {[%emt 0:01:00]} Rf8 {[%emt 0:00:01]} 0-1

[Event "German Championship Women 2022"]
[Site "Magdeburg"]
[Date "2022.08.14"]
[Round "1.6"]
[White "Peglau, Sarah"]
[Black "Birkholz, Olga"]
[Result "0-1"]
[ECO "A43"]
[WhiteElo "1782"]
[BlackElo "2002"]
[Annotator "NA RC"]
[PlyCount "86"]
[EventDate "2022.08.14"]
[EventType "swiss"]
[EventCountry "GER"]
[SourceTitle "playchess.com"]
[Source "ChessBase"]
[SourceQuality "1"]
[TimeControl "40/5400+30:1800+30"]

1. d4 c5 2. d5 d6 3. c4 g6 4. Nc3 Bg7 5. e4 a6 6. Be3 Nh6 7. h3 e5 8. Qd2 Ng8 9. Bd3 f5 10. f3 f4 11. Bf2 Nf6 12. Nge2 O-O 13. a3 Nh5 14. b4 b6 15. Rb1 Nd7 16. a4 cxb4 17. Rxb4 Nc5 18. Nc1 Bd7 19. Qa2 Ng3 20. Rg1 Qc7 21. Be2 Nxe2 22. Kxe2 Rfc8 23. Nd3 Nxd3 24. Kxd3 b5 25. Rc1 Qa5 26. Qb3 bxc4+ 27. Rxc4 Rxc4 28. Qxc4 Rc8 29. Qb3 Bxa4 30. Qb2 Qc7 31. Kd2 Bd7 32. Qa3 Bf8 33. Qxa6 Qd8 34. Bb6 Qg5 35. Qe2 Be7 36. Ra1 Rb8 37. Qf2 Bd8 38. Bxd8 Qxd8 39. Ra2 Qc7 40. Rc2 Rc8 41. Qe2 Ba4 42. Rc1 Qc4 43. Qf1 Qxc3+ 0-1

[Event "German Championship Women 2022"]
[Site "Magdeburg"]
[Date "2022.08.14"]
[Round "1.7"]
[White "Bluebaum, Johanna"]
[Black "Fock, Sana"]
[Result "1/2-1/2"]
[ECO "D45"]
[WhiteElo "2013"]
[BlackElo "1807"]
[Annotator "NA RC"]
[PlyCount "134"]
[EventDate "2022.08.14"]
[EventType "swiss"]
[EventCountry "GER"]
[SourceTitle "playchess.com"]
[Source "ChessBase"]
[SourceQuality "1"]
[TimeControl "40/5400+30:1800+30"]

1. d4 {[%emt 0:00:02]} d5 {[%emt 0:00:09]} 2. c4 {[%emt 0:00:06]} e6 {[%emt 0:00:05]} 3. Nc3 {[%emt 0:00:06]} c6 {[%emt 0:00:11]} 4. e3 {[%emt 0:00:24]} Nf6 {[%emt 0:00:36]} 5. Nf3 {[%emt 0:00:29]} Nbd7 {[%emt 0:01:10]} 6. Qc2 {[%emt 0:00:49]} Bd6 {[%emt 0:01:32]} 7. b3 {[%emt 0:03:08]} Qe7 {[%emt 0:07:11]} 8. cxd5 {[%emt 0:08:48]} exd5 {[%emt 0:03:30]} 9. Bd3 {[%emt 0:02:14]} O-O {[%emt 0:07:07]} 10. Nh4 {[%emt 0:11:54]} g6 {[%emt 0:06:27]} 11. Nf3 {[%emt 0:22:45]} Re8 {[%emt 0:07:06]} 12. Bb2 {[%emt 0:09:35]} Nf8 {[%emt 0:11:32]} 13. Ne5 {[%emt 0:05:11]} Ne4 {[%emt 0:22:46]} 14. Nxe4 {[%emt 0:08:09]} dxe4 {[%emt 0:01:43]} 15. Be2 {[%emt 0:00:26]} Bb4+ {[%emt 0:03:32]} 16. Bc3 {[%emt 0:00:56]} Be6 {[%emt 0:02:31]} 17. O-O {[%emt 0:01:36]} Bxc3 {[%emt 0:02:11]} 18. Qxc3 {[%emt 0:00:10]} Nd7 {[%emt 0:03:10]} 19. Nxd7 {[%emt 0:05:45]} Qxd7 {[%emt 0:00:55]} 20. Rac1 {[%emt 0:00:39]} Bd5 {[%emt 0:01:33]} 21. Bc4 {[%emt 0:03:48]} a5 {[%emt 0:03:59]} 22. Qd2 {[%emt 0:02:00]} Red8 {[%emt 0:01:04]} 23. Rc2 {[%emt 0:01:15]} Qe7 {[%emt 0:02:12]} 24. Bxd5 {[%emt 0:02:10]} Rxd5 {[%emt 0:00:07]} 25. Qe2 {[%emt 0:02:12]} a4 {[%emt 0:03:35]} 26. bxa4 {[%emt 0:01:12]} Rxa4 {[%emt 0:00:53]} 27. Rb1 {[%emt 0:00:11]} Rb4 {[%emt 0:02:08]} 28. Rxb4 {[%emt 0:01:29]} Qxb4 {[%emt 0:00:07]} 29. Rb2 {[%emt 0:00:03]} Qe7 {[%emt 0:01:06]} 30. g3 {[%emt 0:02:01]} Kg7 {[%emt 0:00:38]} 31. Qc2 {[%emt 0:01:02]} Kg8 {[%emt 0:00:54]} 32. Qb1 {[%emt 0:00:58]} Rd7 {[%emt 0:00:37]} 33. a4 {[%emt 0:00:54]} Rc7 {[%emt 0:02:09]} 34. Qa2 {[%emt 0:01:30]} Rd7 {[%emt 0:00:42]} 35. Qb3 {[%emt 0:00:28]} Rc7 {[%emt 0:00:33]} 36. Qb6 {[%emt 0:00:38]} Qd7 {[%emt 0:00:56]} 37. a5 {[%emt 0:01:27]} c5 {[%emt 0:00:43]} 38. Rd2 {[%emt 0:01:49]} cxd4 {[%emt 0:00:44]} 39. Rxd4 {[%emt 0:00:39]} Qc6 {[%emt 0:00:55]} 40. Rd8+ {[%emt 0:00:38]} Kg7 {[%emt 0:00:14]} 41. Qd4+ {[%emt 0:02:30]} Kh6 {[%emt 0:04:47]} 42. Kg2 {[%emt 0:06:05]} Qe6 {[%emt 0:07:25]} 43. Qd1 {[%emt 0:03:53]} Rc5 {[%emt 0:03:56]} 44. Rd6 {[%emt 0:07:04]} Qf5 {[%emt 0:04:28]} 45. g4 {[%emt 0:00:17]} Qg5 {[%emt 0:02:49]} 46. h3 {[%emt 0:02:45]} Rb5 {[%emt 0:04:27]} 47. Rd7 {[%emt 0:01:15]} Qf6 {[%emt 0:02:53]} 48. Rd6 {[%emt 0:02:21]} Qg5 {[%emt 0:00:40]} 49. Qa4 {[%emt 0:01:57]} Qe5 {[%emt 0:01:27]} 50. Rd4 {[%emt 0:02:32]} Kg7 {[%emt 0:00:45]} 51. Rxe4 {[%emt 0:02:16]} Rxa5 {[%emt 0:00:17]} 52. Rxe5 {[%emt 0:00:48]} Rxa4 {[%emt 0:00:05]} 53. Rb5 {[%emt 0:00:05]} Ra7 {[%emt 0:01:05]} 54. f4 {[%emt 0:01:35]} h6 {[%emt 0:00:20]} 55. Kf3 {[%emt 0:00:13]} Ra1 {[%emt 0:00:16]} 56. Rxb7 {[%emt 0:00:24]} Rh1 {[%emt 0:00:19]} 57. Kg2 {[%emt 0:00:08]} Re1 {[%emt 0:00:14]} 58. Rb3 {[%emt 0:00:06]} Re2+ {[%emt 0:00:46]} 59. Kf3 {[%emt 0:00:25]} Re1 {[%emt 0:00:37]} 60. e4 {[%emt 0:00:43]} Rf1+ {[%emt 0:00:27]} 61. Kg3 {[%emt 0:00:25]} Rg1+ {[%emt 0:00:19]} 62. Kf2 {[%emt 0:00:19]} Rc1 {[%emt 0:00:52]} 63. e5 {[%emt 0:00:11]} Rc2+ {[%emt 0:00:22]} 64. Kg3 {[%emt 0:00:27]} Re2 {[%emt 0:00:50]} 65. Rb7 {[%emt 0:00:56]} g5 {[%emt 0:01:27]} 66. Kf3 {[%emt 0:01:42]} Re1 {[%emt 0:00:09]} 67. fxg5 hxg5 1/2-1/2